Cogmind - Beta 17.1 @@@ ROGUE MODE // 2026.09.14 @ 07:52:15 Player: Kite Result: Heading to fleet! Performance ------------- Evolutions (9) 4500 Regions Visited (27) 5400 Robots Destroyed (287) 1435 Value Destroyed (12431) 12431 Prototype IDs (62) 1240 Alien Tech Used (6) 1200 Bonus (10863) 10863 TOTAL SCORE: 37069 Bonus ------- High Alert Combat Kills 1525 Follower Combat Kills 4476 Awakened Behemoth Slayer 1000 Network Hubs Disabled 200 Registered with UFD 300 Destroyed Z-Imprinter 1000 Triggered Deep Caves Wall 500 Exposed GOLEM Chamber 500 Met Zhirov 300 Built Enhanced Grunts 300 Met R17 at Cetus 500 Used Core Reset Matrix 3000 Met R17 at Research 2000 Win 3000 Friendly Fire -7738 Cogmind --------- Core Integrity 1535/1600 Matter 246/300 Energy 1147/1590 System Corruption 0% Temperature Cool (7) Movement Walking (113) Location To Fleet Rendezvous Parts ------- > --- POWER (2) -------- Particle Reactor Reinforced Quantum Reactor > --- PROPULSION (6) --- Assembled Alloy Leg Assembled Alloy Leg Centrium Leg Centrium Leg Heavy Shield Leg > --- UTILITY (15) ----- Huge Storage Unit Assembled Biocell Array Assembled Metafiber Network Advanced Sensor Array Advanced Signal Interpreter Experimental Terrain Scanner Terrain Scan Processor Assembled Combat Suite Microactuators Advanced Reaction Control System Experimental Utility Shielding Centrium Medium Armor Plating Assembled Alloy Armor Medium Regenerative Plating Graphene Brace > --- WEAPON (3) ------- Sigix Broadsword CR-A16's Behemoth Slayer > --- INVENTORY (25) --- Myomer Leg Myomer Leg Myomer Leg Myomer Leg Biometal Leg Biometal Leg Centrium Leg Coolant Network Zionite Biocell (600) Matter Compressor (250) Advanced Sensor Array Microactuators Microactuators Advanced Reaction Control System Centrium Medium Armor Plating Experimental Shield Generator AEGIS Remote Shield Phase Redirector Transdimensional Reconstructor Gamma Bomb Array Phasing Sabre Sigix Broadsword Peak State ------------ > --- POWER ------------ Assembled Flux Generator > --- PROPULSION ------- Myomer Leg Enhanced Biometal Leg Assembled Alloy Leg Assembled Alloy Leg Centrium Leg Centrium Leg > --- UTILITY ---------- Assembled Nanovents Assembled Nanovents Assembled Nanovents Assembled Nanovents Assembled Biocell Array Assembled Biocell Array Assembled Suspension Frame Assembled Metafiber Network Assembled Combat Suite Assembled Alloy Armor Assembled Alloy Armor Assembled Alloy Armor Assembled Alloy Armor GOLEM Unit > --- WEAPON ----------- Assembled Focal Cannon Sigix Broadsword > --- INVENTORY -------- Myomer Leg Matter Compressor AEGIS Remote Shield [Rating: 240] Favorites ----------- Power Assembled Flux Generator Engine Heavy Ion Engine Reactor Assembled Flux Generator Propulsion Light Treads Treads Light Treads Leg Assembled Alloy Leg Wheel Overtuned Huge Scrapsphere Utility Huge Storage Unit Device GOLEM Unit Storage Huge Storage Unit Processor Improved Signal Interpreter Hackware Advanced Hacking Suite Protection Assembled Alloy Armor Artifact Phase Redirector Weapon Assembled Focal Cannon Energy Gun Improved EM Shotgun Energy Cannon Assembled Focal Cannon Ballistic Gun Coil Gun Ballistic Cannon Light Cannon Launcher Precision Rocket Launcher Special Weapon CPS Tube Impact Weapon Powered Hammer Slashing Weapon Longsword +1 Piercing Weapon CR-A16's Pointy Stick Special Melee Weapon Datajack Build | -11 -10 -10 -9 -9 -9 -9 -6 -6 -6 -6 -6 -5 -5 -5 -5 -5 -4 -4 -4 -4 -4 -4 -3 -3 -2 -2 -1 ------- Run | Yrd Mat Min Mat Sto Rec Scr Fac Low Low Zio Dee Pro Fac Upp Upp Zhi Pro Fac Ext Cet Arc Hub Res Qua Res Tes Acc Slots Evolved 18 | . . . 2 . . . 6 . . . . . 2 . . . . 2 . . . . 2 . 2 . 2 Power 1 | . . . . . . . . . . . . . 1 . . . . . . . . . . . . . . Propulsion 4 | . . . 1 . . . 2 . . . . . 1 . . . . . . . . . . . . . . Utility 12 | . . . 1 . . . 4 . . . . . . . . . . 1 . . . . 2 . 2 . 2 Weapon 1 | . . . . . . . . . . . . . . . . . . 1 . . . . . . . . . Parts Attached 211 | 6 7 5 15 15 1 3 15 6 6 14 26 14 8 1 1 2 1 6 10 5 4 . 12 9 5 4 10 Power 14 | 1 . 1 2 1 . . 1 . 1 . 4 1 . . . . . . . . . . . . . . 2 Engine 7 | 1 . 1 2 1 . . 1 . 1 . . . . . . . . . . . . . . . . . . Core . | . . . . . . . . . . . . . . . . . . . . . . . . . . . . Reactor 7 | . . . . . . . . . . . 4 1 . . . . . . . . . . . . . . 2 Propulsion 56 | 2 . . 5 4 1 . 4 1 3 5 4 4 2 1 . . 1 2 6 . . . 5 2 . 3 1 Treads 20 | 2 . . 3 4 1 . 4 1 3 2 . . . . . . . . . . . . . . . . . Leg 30 | . . . . . . . . . . . 3 4 2 1 . . 1 2 6 . . . 5 2 . 3 1 Wheel 6 | . . . 2 . . . . . . 3 1 . . . . . . . . . . . . . . . . Hover . | . . . . . . . . . . . . . . . . . . . . . . . . . . . . Flight . | . . . . . . . . . . . . . . . . . . . . . . . . . . . . Utility 96 | 1 3 1 4 4 . 1 9 2 2 5 12 8 3 . 1 2 . 4 3 4 4 . 7 5 4 1 6 Device 42 | . . . 2 2 . 1 5 2 2 3 6 1 2 . . 1 . 1 . . 1 . 4 2 2 1 4 Storage 9 | 1 2 . . 2 . . . . . 1 1 . 1 . . . . . . . . . 1 . . . . Processor 15 | . . . . . . . 2 . . . 1 3 . . 1 . . . 1 . 2 . . 2 1 . 2 Hackware 7 | . . . 1 . . . 1 . . . . . . . . . . 2 . . 1 . 2 . . . . Protection 22 | . 1 1 1 . . . 1 . . 1 4 4 . . . 1 . 1 2 4 . . . . 1 . . Artifact 1 | . . . . . . . . . . . . . . . . . . . . . . . . 1 . . . Weapon 45 | 2 4 3 4 6 . 2 1 3 . 4 6 1 3 . . . . . 1 1 . . . 2 1 . 1 Energy Gun 7 | 1 . . . 5 . . . . . . 1 . . . . . . . . . . . . . . . . Energy Cannon 2 | . . . 1 . . . . . . 1 . . . . . . . . . . . . . . . . . Ballistic Gun 7 | 1 2 1 1 . . . . 2 . . . . . . . . . . . . . . . . . . . Ballistic Cannon 4 | . 2 . 2 . . . . . . . . . . . . . . . . . . . . . . . . Launcher 4 | . . 2 . 1 . . . . . . . . . . . . . . . . . . . 1 . . . Special Weapon 8 | . . . . . . . . 1 . 2 2 . 2 . . . . . . 1 . . . . . . . Impact Weapon 5 | . . . . . . 2 . . . . 2 1 . . . . . . . . . . . . . . . Slashing Weapon 5 | . . . . . . . . . . . 1 . 1 . . . . . 1 . . . . 1 . . 1 Piercing Weapon 2 | . . . . . . . . . . 1 . . . . . . . . . . . . . . 1 . . Special Melee Weapon 1 | . . . . . . . 1 . . . . . . . . . . . . . . . . . . . . Unidentified Prototypes 36 | . . . . 4 . . . . . 5 13 . . . 1 2 . . . 2 . . 3 4 . 1 1 Corrupted Parts 5 | . . . . . 1 . . . . 3 1 . . . . . . . . . . . . . . . . System Corruption 26 | . . . . . 1 . . . . 21 4 . . . . . . . . . . . . . . . . Parts Lost 55 | . . 6 1 3 1 . 4 . 1 . 10 7 4 2 . . 1 4 5 . . 2 . 2 1 . 1 Power 5 | . . 1 . . . . . . . . 1 1 1 . . . . . . . . . . . . . 1 Propulsion 24 | . . 2 . 3 1 . 3 . 1 . 4 2 2 2 . . 1 2 . . . . . 1 . . . Utility 19 | . . 1 1 . . . 1 . . . 3 3 1 . . . . 2 3 . . 2 . 1 1 . . Weapon 7 | . . 2 . . . . . . . . 2 1 . . . . . . 2 . . . . . . . . Highest Loss Streak 4 | . . 4 1 2 1 . 4 . 1 . 4 4 1 2 . . 1 2 2 . . 1 . 1 1 . 1 To Critical Strikes 1 | . . . . . . . . . . . . . . . . . . 1 . . . . . . . . . Average Backups 18 | . 6 10 7 16 20 20 19 19 18 18 19 17 22 19 20 21 23 21 22 22 9 24 23 23 22 22 13 Power . | . 1 . . 1 2 2 2 1 . . . . . . . . . . . 1 . 1 . . . . . Propulsion 3 | . . . 1 4 6 6 3 5 5 4 3 1 2 1 1 1 1 1 3 3 1 3 3 3 4 5 3 Utility 8 | . 2 4 3 6 8 7 7 5 4 3 9 8 11 11 11 11 12 14 12 12 5 13 13 14 12 12 6 Weapon 4 | . 2 4 1 4 4 2 2 3 5 6 4 5 7 6 7 7 6 3 3 4 1 4 4 3 2 3 1 Tool/Special . | . . . . . . . . . . . . . . . . . . . . . . . . . . . . Unused Backups 73 | . . 2 . 2 1 10 . 3 . 10 4 13 2 . . . 2 2 3 3 . . 2 4 . . 10 Power 5 | . . . . . . 1 . 1 . . 1 1 . . . . . . . . . . 1 . . . . Propulsion 11 | . . . . . . . . . . 1 . 3 . . . . . . 2 . . . . . . . 5 Utility 30 | . . 1 . . 1 5 . 1 . 3 1 5 1 . . . . . 1 3 . . 1 3 . . 4 Weapon 25 | . . 1 . 2 . 3 . 1 . 6 2 4 1 . . . 2 2 . . . . . 1 . . . Tool/Special 2 | . . . . . . 1 . . . . . . . . . . . . . . . . . . . . 1 Average Slot Usage (%) 88 | . 93 86 82 99 100 92 86 93 93 92 83 84 87 87 87 83 87 89 90 94 69 90 89 86 86 86 84 Engine 4 | . 14 11 9 11 11 11 6 6 6 6 . . . . . . . . . . . . . . . . . Reactor 2 | . . . . . . . . . . . 4 5 5 5 5 5 5 5 5 5 4 5 4 4 4 4 3 Treads 15 | . 28 24 24 32 33 33 32 33 33 32 18 . . . . . . . . . . . . . . . . Leg 14 | . . . . . . . . . . . 9 30 34 34 33 33 32 29 29 30 28 30 26 26 25 24 22 Device 13 | . . . 5 9 11 11 18 20 20 20 14 12 7 11 10 10 11 9 13 9 12 16 18 15 15 15 25 Storage 9 | . 14 12 9 11 11 11 6 6 6 6 10 5 10 10 11 11 11 10 10 10 7 10 9 9 8 8 6 Processor 4 | . . . . . . . 5 6 6 6 4 1 6 5 9 11 11 10 6 10 3 . . 6 11 10 3 Hackware 3 | . . . 3 11 11 4 . 6 6 5 . . . . . . . 5 5 5 . 3 6 4 4 4 . Protection 5 | . 8 11 7 1 . . 2 . . . 5 14 7 5 5 5 5 4 6 10 5 10 10 9 8 9 13 Energy Gun 2 | . 3 . . 19 22 10 . . . . . . . . . . . . . . . . . . . . . Energy Cannon 2 | . . . 4 . . . . . . . 1 . . 4 5 1 5 7 10 10 7 15 12 5 1 . 1 Ballistic Gun 1 | . 17 23 6 . . . . 12 12 . . . . . . . . . . . . . . . . . . Impact Weapon 3 | . . . . . . 11 11 . . 12 6 5 . . . . . . . . . . . . . . . Slashing Weapon 2 | . . . . . . . . . . . 2 6 7 5 5 5 5 7 4 2 . . . 3 5 8 4 Peak Build Rating 240 | 6 10 10 13 22 22 30 52 56 64 70 126 119 134 134 138 135 139 160 160 160 176 177 194 200 210 214 240 Average Rating 93 | 4 8 8 10 20 21 25 47 54 60 54 82 105 127 128 132 126 137 151 153 154 128 171 187 194 204 208 217 On Entrance 101 | . 6 10 . 13 22 22 30 49 54 61 70 117 108 134 130 132 135 139 146 149 159 170 177 194 195 206 212 Avg Prop Armor Cover (%) 11 | . . . 11 8 . . . . . 15 5 . . . . . . . . . . . . . . . . Naked Turns 50 | . . 40 10 . . . . . . . . . . . . . . . . . . . . . . . . Heaviest Build 208 | 12 52 52 37 55 55 98 110 109 111 123 123 118 146 146 146 146 146 162 180 182 189 188 192 198 171 175 208 Greatest Support 195 | 40 40 40 60 60 60 60 100 100 110 110 130 136 151 147 141 141 151 158 160 153 173 160 195 195 178 180 195 Greatest Overweight (x) 5 | . 1 2 2 1 1 1 1 1 1 5 5 . 1 1 1 1 1 1 1 1 1 1 1 1 . 1 1 Average Overweight (x) . | . . . . . . . . 1 . 1 . . . . 1 . . . 1 1 . 1 . . . . . Largest Inventory Capacity 25 | 8 20 20 15 25 20 25 25 25 25 25 25 25 25 25 25 25 25 25 25 25 25 25 25 25 25 25 25 Average Capacity 22 | 7 13 18 13 17 20 21 25 25 25 25 22 20 25 23 25 25 25 25 25 25 20 25 25 25 25 25 17 Most Carried 25 | 1 11 11 11 21 20 25 25 25 25 25 25 25 25 25 23 25 25 25 25 25 25 25 25 25 25 25 25 Average Carried 20 | . 6 10 7 16 20 21 22 24 24 21 21 19 24 21 22 23 24 23 24 24 9 24 24 24 23 24 14 Final Capacity 25 | 8 20 5 15 20 20 25 25 25 25 25 25 25 25 25 25 25 25 25 25 25 25 25 25 25 25 25 25 Final Carried 25 | 1 11 5 11 20 20 25 24 25 25 25 25 25 25 23 22 25 25 21 25 25 25 25 25 25 24 25 24 Scrap Suit Usage (%) 3 | . . . . . . 2 1 62 67 . . . . . . . . . . . . . . . . . . Parts Cannibalized 8 | . . . . . . 1 . 5 2 . . . . . . . . . . . . . . . . . . Class Distribution -------------------- 36% | Scavenger-Mutant 20% | Golem 10% | Commander-Golem 9% | Commander-Mutant 6% | Mutant 3% | Alien-Gladiator 3% | Scavenger-Golem 3% | Alien-Golem Dominant Class ---------------- Mutant | -10/Materials Mutant | -10/Mines Scavenger-Mutant | -9/Materials Scavenger-Mutant | -9/Storage Scavenger-Mutant | -9/Recycling Commander-Mutant | -9/Scraptown Scavenger-Mutant | -6/Factory Scavenger-Mutant | -6/Lower Caves Scavenger-Mutant | -6/Lower Caves Scavenger-Mutant | -6/Zion Scavenger-Mutant | -6/Deep Caves Golem | -5/Proximity Caves Golem | -5/Factory Golem | -5/Upper Caves Golem | -5/Upper Caves Golem | -5/Zhirov Golem | -4/Proximity Caves Hacker-Golem | -4/Factory Commander-Golem | -4/Extension Commander-Mutant | -4/Cetus Commander-Golem | -4/Archives Commander-Golem | -4/Hub_04(d) Hacker-Golem | -3/Research Scavenger-Golem | -3/Quarantine Alien-Gladiator | -2/Research Alien-Gladiator | -2/Testing Alien-Gladiator | -1/Access Resources | -11 -10 -10 -9 -9 -9 -9 -6 -6 -6 -6 -6 -5 -5 -5 -5 -5 -4 -4 -4 -4 -4 -4 -3 -3 -2 -2 -1 ----------- Run | Yrd Mat Min Mat Sto Rec Scr Fac Low Low Zio Dee Pro Fac Upp Upp Zhi Pro Fac Ext Cet Arc Hub Res Qua Res Tes Acc Matter Collected 8351 | 260 381 180 687 204 30 . 839 616 425 184 1590 709 279 132 89 . 95 116 180 50 156 . 242 181 191 284 251 Remotely . | . . . . . . . . . . . . . . . . . . . . . . . . . . . . Salvage Created 16603 | . 449 234 708 1241 43 . 660 198 219 85 1759 1548 681 215 109 . 146 597 1721 233 268 165 780 966 1648 691 1239 Parts 738 | . 30 18 46 63 2 . 11 3 10 11 21 60 41 9 6 . 5 24 70 14 13 6 44 67 75 41 48 Haulers Intercepted 12 | . 2 . 3 6 . . . . . . . . . . . . . . 1 . . . . . . . . Recyclers Shooed 15 | . . . 3 1 . . 1 . . . . . 1 . . . . . 3 . . . . . 2 . 4 Parts Field Recycled . | . . . . . . . . . . . . . . . . . . . . . . . . . . . . Retrieved Matter . | . . . . . . . . . . . . . . . . . . . . . . . . . . . . Parts Self-Destructed 133 | . . . . . . . . 20 7 1 . 87 . 9 6 . 3 . . . . . . . . . . Prevented 10 | . . . . . . . . . . . . 9 . 1 . . . . . . . . . . . . . Parts Restored . | . . . . . . . . . . . . . . . . . . . . . . . . . . . . Kills | -11 -10 -10 -9 -9 -9 -9 -6 -6 -6 -6 -6 -5 -5 -5 -5 -5 -4 -4 -4 -4 -4 -4 -3 -3 -2 -2 -1 ------- Run | Yrd Mat Min Mat Sto Rec Scr Fac Low Low Zio Dee Pro Fac Upp Upp Zhi Pro Fac Ext Cet Arc Hub Res Qua Res Tes Acc Combat Hostiles Destroyed 268 | . 11 22 11 17 . . 4 1 5 . 62 32 10 3 2 . 4 6 18 2 2 1 6 14 18 13 4 Melee 79 | . . . . . . . 2 . . . 11 15 9 . . . 3 4 . . . . . 8 12 13 2 Guns 43 | . 8 10 3 16 . . . 1 5 . . . . . . . . . . . . . . . . . . Cannons 49 | . 3 . 8 . . . . . . . 4 . . 2 2 . 1 2 13 2 2 1 6 3 . . . AOE 84 | . . 12 . . . . . . . . 45 14 1 . . . . . 5 . . . . 2 5 . . Classes Destroyed 25 | . 6 2 1 1 . . 3 . 1 . 3 3 1 . . . 1 . 1 . . . 1 . . 1 . Worker 15 | . . 1 3 1 . . 5 . . . . . 1 . . . . . . . . . . 2 1 1 . Builder 11 | . 1 . 1 1 . . 1 . . . . . . . . . . . 1 . . . . 2 3 . 1 Tunneler 4 | . . . . . . . 1 . . . . . 1 . . . . . . . . . 2 . . . . Hauler 12 | . 2 . 3 6 . . . . . . . . . . . . . . 1 . . . . . . . . Recycler 20 | . . . . 2 1 . 3 . . . . 2 . . . . . 1 3 . . . 1 . 1 . 6 Mechanic 1 | . . . . . . . . . . . . 1 . . . . . . . . . . . . . . . Operator 6 | . 1 . 1 . . . . . . . . . . . . . . 1 . . 2 . . 1 . . . Drone 2 | . . . . . . . . . . . . . . . . . 2 . . . . . . . . . . Watcher 7 | . 2 . 1 1 . . . . . . . 1 1 . . . . . 1 . . . . . . . . Swarmer 45 | . 5 5 . 4 . . . . 3 . . 11 . . . . . . 5 . . . . 4 3 5 . Saboteur 1 | . . . . . . . . . . . . . . . . . . . . . . . . . . 1 . Grunt 49 | . 6 2 5 4 . . 2 1 . . . 4 3 1 . . . 2 9 . . . 1 . 8 1 . Brawler 3 | . . . . . . . . . . . . 3 . . . . . . . . . . . . . . . Duelist 6 | . . . . . . . . . . . . 3 . . . . . . . . . . . . . 3 . Sentry 33 | . . . 6 9 . . . . . . . 6 2 1 . . . 2 2 . 2 . 3 . . . . Specialist 4 | . . . . . . . . . . . . . 2 . . . . . . . . . . 2 . . . Hunter 19 | . . . . . . . 1 . . . . 2 1 . . . 2 2 1 . . 1 1 3 3 . 2 Programmer 19 | . . . . . . . 1 . . . . 2 2 . 2 . . . . . . . 1 5 3 3 . Behemoth 6 | . . . . . . . . . . . . 1 . 1 . . . . 1 . . . . . 1 . 2 Cetus Guard 2 | . . . . . . . . . . . . . . . . . . . . 2 . . . . . . . Enhanced Grunt 1 | . . . . . . . . . . 1 . . . . . . . . . . . . . . . . . Scrapoid 1 | . . . . . . . . . . . . . . . . . . . 1 . . . . . . . . Z-Light 8 | . . . . . . . . . . . 8 . . . . . . . . . . . . . . . . Packrat 1 | . . . . . . . . 1 . . . . . . . . . . . . . . . . . . . Assembler 2 | . . . . . . . . . . . 2 . . . . . . . . . . . . . . . . Assembled 58 | . . 15 . . . . . . . . 43 . . . . . . . . . . . . . . . . Golem 11 | . . . . . . . . . . . 11 . . . . . . . . . . . . . . . . Thug 3 | . . . . . . . . 1 1 . . . . . . . . . . . . 1 . . . . . Savage 1 | . . . . . . . . . 1 . . . . . . . . . . . . . . . . . . Guerrilla 1 | . . . . . . . . . . . . . . . . . . . 1 . . . . . . . . Revision 1 | . . . . . . . . . . . . . . . . . . . . . . . 1 . . . . Best Kill Streak 44 | . 3 16 4 5 1 . 3 1 2 . 44 5 4 1 2 . 2 2 6 2 2 1 4 8 9 5 2 Combat Bots Only 42 | . 3 16 2 5 . . 1 1 2 . 42 4 4 1 2 . 2 2 5 2 2 1 3 7 6 4 2 Max Kills in Single Turn 18 | . 1 2 1 1 1 . 1 1 1 1 18 4 2 1 1 . 1 2 3 1 1 1 2 2 5 1 1 Gunslinging . | . . . . . . . . . . . . . . . . . . . . . . . . . . . . Exploded 17 | . . 2 . . . . . . . . 17 4 1 . . . . . 3 . . . . 1 3 . . Melee 1 | . . . . . . . 1 . . . 1 1 1 . . . 1 1 . . . . . 1 1 1 1 Uniques/NPCs Destroyed 3 | . . . . . . . . . . . 1 . . . . . . . . 1 . . 1 . . . . Z-Imprinter (-6/Deep Caves) A7 (-4/Cetus) Revision 17++ (-3/Research) Combat | -11 -10 -10 -9 -9 -9 -9 -6 -6 -6 -6 -6 -5 -5 -5 -5 -5 -4 -4 -4 -4 -4 -4 -3 -3 -2 -2 -1 -------- Run | Yrd Mat Min Mat Sto Rec Scr Fac Low Low Zio Dee Pro Fac Upp Upp Zhi Pro Fac Ext Cet Arc Hub Res Qua Res Tes Acc Hostile Shots Fired 1647 | . 42 75 46 104 2 . 58 . 49 . 134 157 149 24 14 . 82 62 130 5 3 8 25 112 135 95 136 Missed 525 | . 11 22 15 27 . . 12 . 11 . 37 49 31 7 1 . 15 20 50 2 1 1 14 47 47 37 68 Hits 1122 | . 31 53 31 77 2 . 46 . 38 . 97 108 118 17 13 . 67 42 80 3 2 7 11 65 88 58 68 Melee 31 | . . 2 . . . . . . 1 . 9 7 . . . . . . . . . . . . . 12 . Projectile 1091 | . 31 51 31 77 2 . 46 . 37 . 88 101 118 17 13 . 67 42 80 3 2 7 11 65 88 46 68 AOE 4 | . . 1 . . . . . 2 . . . . . . . . . . . . . 1 . . . . . Critical Strikes 49 | . . 1 1 2 1 . . . 1 . 1 5 2 . . . 3 4 2 1 1 2 1 3 5 8 5 Actively Blocked 6 | . . . . . . . . . . . . . . . . . . . . . . . . . 1 . 5 Part Disruptions 6 | . . . . 1 . . . . . . . . . . . . . . . . . . . 1 1 3 . Damage Taken 19559 | . 283 808 449 1032 24 . 776 70 599 . 2899 2009 1394 345 216 . 746 810 1330 69 54 490 285 1012 1658 1053 1148 Core 1982 | . 83 159 131 154 . . 64 . 14 . 412 93 94 22 17 . 54 114 113 . . 53 . 123 170 47 65 Absorbed by Shields 1368 | . . . . . 6 . . . . . . . 330 . . . . . 490 25 20 96 . . 12 243 146 Redirected to Core 66 | . . . . . . . . . . . . . . . . . . . . . . . . 66 . . . Redirected to Shielding 150 | . . 11 . . . . . . . . . 39 . . . . . . . . . . . . . . 100 Ignored by Resistances 2932 | . . . . . . . . . . . 593 406 350 68 41 . 157 145 . . . 58 59 217 314 259 265 Regen/Repaired (Parts) 2237 | . . . . 46 . 10 128 41 20 . . . . . . . . . . 67 70 18 65 200 718 467 387 Core Remaining (%) 65 | 100 . 3 . . . 28 . . . . . 31 . . . . 81 . . . . 75 . 90 . 85 95 Volleys Fired 547 | . 47 40 65 75 1 . . 10 23 7 47 14 7 12 22 . 19 21 54 8 9 11 28 14 8 . 5 Largest 3 | . 2 2 2 2 2 . . 2 2 1 2 1 1 1 1 . 1 2 2 2 3 3 3 3 1 . 2 Hottest 120 | . 70 46 60 112 90 . . 60 60 90 120 43 43 25 25 . 25 50 50 50 75 75 75 80 80 . 50 Shots Fired 915 | . 94 65 88 150 2 . . 20 48 7 50 14 7 13 22 . 22 36 102 15 22 33 67 23 8 . 7 Gun 359 | . 62 50 16 150 2 . . 19 48 . 12 . . . . . . . . . . . . . . . . Cannon 473 | . 32 . 72 . . . . . . 5 7 . . 13 22 . 22 35 98 14 22 33 66 21 4 . 7 Launcher 67 | . . 15 . . . . . . . . 25 13 4 . . . . 1 4 . . . . 2 3 . . Special 16 | . . . . . . . . 1 . 2 6 1 3 . . . . . . 1 . . 1 . 1 . . Kinetic 272 | . 81 50 62 . . . . 19 48 . 12 . . . . . . . . . . . . . . . . Thermal 532 | . 13 . . 150 . . . . . 5 7 . . 13 22 . 22 35 98 14 22 33 66 21 4 . 7 Explosive 67 | . . 15 . . . . . . . . 30 13 4 . . . . 1 4 . . . . . . . . Electromagnetic 33 | . . . 26 . 2 . . . . . . . . . . . . . . . . . . 2 3 . . Robot Hit Streak 22 | . 8 8 20 15 19 . . 20 6 3 6 10 3 3 6 . 2 6 11 12 4 2 18 22 3 . 5 Robot Miss Streak 9 | . 9 6 3 4 . . . 4 4 . 5 1 1 1 1 . 8 2 4 3 4 . 2 1 1 . 1 Penetration Max . | . . . . . . . . . . . . . . . . . . . . . . . . . . . . Secondary Targets 4 | . 2 . . 1 . . . . 1 . . . . . . . . . . . . . . . . . . Max Gunslinging Chain 1 | . 1 . . 1 . . . . 1 . . . . . . . . . . . . . . . . . . Shots Hit Robots 936 | . 55 34 61 97 2 . 35 12 28 3 84 95 63 8 9 . 16 33 79 32 14 1 40 21 45 41 28 Core Hits 538 | . 25 42 27 37 . . 4 5 8 1 119 53 22 3 2 . 5 14 44 6 7 2 20 27 43 16 6 Critical Kills 2 | . . . . . . . . . 1 . . 1 . . . . . . . . . . . . . . . Critical Parts Destroyed 8 | . . . . . . . 2 1 . . 2 3 . . . . . . . . . . . . . . . Critical Strikes 72 | . . . 1 10 . . 2 1 1 1 2 18 8 1 . . . 2 1 4 . . . . 11 8 1 Burn 10 | . . . . 10 . . . . . . . . . . . . . . . . . . . . . . . Destroy 2 | . . . . . . . . 1 1 . . . . . . . . . . . . . . . . . . Corrupt 1 | . . . 1 . . . . . . . . . . . . . . . . . . . . . . . . Smash 8 | . . . . . . . 2 . . . 2 4 . . . . . . . . . . . . . . . Sever 48 | . . . . . . . . . . . . 13 8 . . . . 2 1 4 . . . . 11 8 1 Impale 3 | . . . . . . . . . . 1 . 1 . 1 . . . . . . . . . . . . . Melee Attacks 593 | . . . . . . . 61 . . 2 82 107 68 7 . . 14 22 12 28 2 . . 28 58 55 47 Impact 119 | . . . . . . . 58 . . 1 36 24 . . . . . . . . . . . . . . . Slashing 443 | . . . . . . . . . . . 41 69 68 2 . . 14 22 12 28 2 . . 28 57 55 45 Piercing 28 | . . . . . . . . . . 1 5 14 . 5 . . . . . . . . . . 1 . 2 Sneak Attacks 69 | . . . . . . . 14 . . 1 . 4 2 . . . . . 8 24 2 . . 2 3 1 8 Combat Hostiles . | . . . . . . . . . . . . . . . . . . . . . . . . . . . . Follow-up Attacks 60 | . . . . . . . 6 . . . 7 16 7 1 . . . 3 . . . . . . 8 10 2 Damage Inflicted 50703 | . 796 1234 1151 1657 73 . 1949 252 581 64 9913 5830 3324 301 496 . 768 1579 5073 1934 806 177 1877 2115 3766 2588 2399 Guns 3861 | . 514 454 228 1654 39 . . 252 581 . 139 . . . . . . . . . . . . . . . . Cannons 10175 | . 282 . 923 . . . . . . . 90 . . 183 496 . 179 751 3584 357 592 151 1857 403 32 . 295 Explosions 10640 | . . 780 . . . . . . . . 5741 2058 479 . . . . . 645 . . . . 306 631 . . Melee 25728 | . . . . . . . 1949 . . 64 3741 3772 2831 118 . . 589 828 844 1577 214 . . 1406 3103 2588 2104 Ramming 97 | . . . . 3 34 . . . . . . . 14 . . . . . . . . 26 20 . . . . Kinetic 2838 | . 721 454 691 . . . . 252 581 . 139 . . . . . . . . . . . . . . . . Thermal 10699 | . 75 . . 1654 . . . . . . 90 . . 183 496 . 179 751 3584 357 592 151 1857 403 32 . 295 Explosive 9703 | . . 780 . . . . . . . . 5741 2058 479 . . . . . 645 . . . . . . . . Electromagnetic 1436 | . . . 460 . 39 . . . . . . . . . . . . . . . . . . 306 631 . . Impact 4019 | . . . . . . . 1949 . . . 1369 701 . . . . . . . . . . . . . . . Slashing 21331 | . . . . . . . . . . . 2395 2801 2831 51 . . 589 828 844 1577 214 . . 1406 3103 2588 2104 Piercing 580 | . . . . . . . . . . 64 179 270 . 67 . . . . . . . . . . . . . Highest Corruption 21 | . . . . . 1 . 6 6 6 21 10 10 2 2 4 4 4 . . . . 6 . 8 1 6 . Average Corruption 5 | . . . . . 1 . 3 6 6 6 5 10 1 2 3 4 4 . . . . 4 . 4 1 1 . Corruption Purged . | . . . . . . . . . . . . . . . . . . . . . . . . . . . . Corruption Blocked . | . . . . . . . . . . . . . . . . . . . . . . . . . . . . Effects 274 | . . . . . 2 . 13 20 19 6 62 65 6 21 21 2 18 . . . . 2 . 10 2 5 . Message Errors 77 | . . . . . . . 3 4 5 . 19 19 2 9 5 1 6 . . . . . . 3 1 . . Matter Fused 66 | . . . . . . . 4 7 7 4 10 15 1 3 5 1 4 . . . . 1 . 3 . 1 . Heat Flow Errors 21 | . . . . . . . . 2 1 1 6 4 . 2 1 . 1 . . . . . . 2 . 1 . Energy Discharges 34 | . . . . . 2 . 2 4 1 . 7 8 2 1 4 . . . . . . . . 1 1 1 . Parts Rejected 5 | . . . . . . . . . . . 1 4 . . . . . . . . . . . . . . . Parts Fused 3 | . . . . . . . . . . . 1 1 . . . . 1 . . . . . . . . . . Data Loss (minor) 35 | . . . . . . . 1 1 1 1 11 6 1 2 6 . 2 . . . . . . 1 . 2 . Data Loss (major) 13 | . . . . . . . 2 . 1 . 2 5 . 2 . . 1 . . . . . . . . . . Misfires 7 | . . . . . . . . 1 2 . . . . 1 . . 3 . . . . . . . . . . Alerts 11 | . . . . . . . 1 1 1 . 3 3 . 1 . . . . . . . 1 . . . . . Weapon Failures 2 | . . . . . . . . . . . 2 . . . . . . . . . . . . . . . . Overload Shots . | . . . . . . . . . . . . . . . . . . . . . . . . . . . . Overflow Damage 3957 | . . 1 34 . . . 765 . . . 1023 245 153 17 71 . 31 28 162 70 49 1 58 73 397 372 407 Projectiles 307 | . . . 34 . . . . . . . . . . 17 71 . 3 22 10 . 7 . 58 . . . 85 Explosions 423 | . . 1 . . . . . . . . 295 78 34 . . . . . 15 . . . . . . . . Melee 3227 | . . . . . . . 765 . . . 728 167 119 . . . 28 6 137 70 42 1 . 73 397 372 322 Knockbacks 18 | . 2 . 4 . 2 . 4 . . . 4 1 . . . . . . . . . 1 . . . . . Impact 11 | . . . . . 2 . 3 . . . 4 1 . . . . . . . . . 1 . . . . . Kinetic 6 | . 2 . 4 . . . . . . . . . . . . . . . . . . . . . . . . Secondary 1 | . . . . . . . 1 . . . . . . . . . . . . . . . . . . . . Self-Inflicted Damage 251 | . . 118 . . . . . . . . 106 . . . . . . . . . . . . 17 10 . . Shots 8 | . . 3 . . . . . . . . 2 . . . . . . . . . . . . 2 1 . . Rammed 4 | . . . . 1 3 . . . . . . . . . . . . . . . . . . . . . . Targets Rammed 8 | . . . . 1 4 . . . . . . . 1 . . . . . . . . 1 1 . . . . Kicked 3 | . . . . . . . . . . . . . 1 . . . . . . . . 1 1 . . . . Crushed 1 | . . . . . 1 . . . . . . . . . . . . . . . . . . . . . . Highest Temperature 307 | . 63 30 117 159 15 . . 201 265 154 307 262 11 157 78 . 184 . . . . . . 111 31 138 . Average Temperature 59 | . 19 18 25 29 12 . . 92 140 46 106 92 5 80 78 . 107 . . . . . . 61 16 84 . Received Heat Transfer 2799 | . 93 66 180 297 21 . 63 . 36 . 462 280 512 69 . . . 150 204 . 9 . 36 . 279 . 42 Siege Activations . | . . . . . . . . . . . . . . . . . . . . . . . . . . . . Martial Activations . | . . . . . . . . . . . . . . . . . . . . . . . . . . . . Shielding Activations . | . . . . . . . . . . . . . . . . . . . . . . . . . . . . Robots Disrupted . | . . . . . . . . . . . . . . . . . . . . . . . . . . . . Combat Hostiles . | . . . . . . . . . . . . . . . . . . . . . . . . . . . . Robots Corrupted 15 | . . . 1 . . . 6 . . . 4 3 . . . . . . . . . . . 1 . . . Combat Hostiles 10 | . . . . . . . 2 . . . 4 3 . . . . . . . . . . . 1 . . . Parts Fried 34 | . . . 3 . . . 14 1 . . 1 5 . 1 . . . . . . . . . 5 4 . . Impact Corruptions 46 | . . . . . . . 23 . . . 17 5 . . . . . . . . . 1 . . . . . Robots Melted 1 | . . . . 1 . . . . . . . . . . . . . . . . . . . . . . . Combat Hostiles 1 | . . . . 1 . . . . . . . . . . . . . . . . . . . . . . . Parts Melted 22 | . . . . 13 . . . . . . . . . . . . . . 4 1 . . 3 . 1 . . Heat Transferred 9265 | . 222 . . 4329 . . . . . . . . . 100 225 . 100 425 1979 200 325 75 910 200 25 . 150 Parts Sabotaged . | . . . . . . . . . . . . . . . . . . . . . . . . . . . . Parts Stolen . | . . . . . . . . . . . . . . . . . . . . . . . . . . . . Parts Stripped . | . . . . . . . . . . . . . . . . . . . . . . . . . . . . Power Chain Reactions . | . . . . . . . . . . . . . . . . . . . . . . . . . . . . Alert | -11 -10 -10 -9 -9 -9 -9 -6 -6 -6 -6 -6 -5 -5 -5 -5 -5 -4 -4 -4 -4 -4 -4 -3 -3 -2 -2 -1 ------- Run | Yrd Mat Min Mat Sto Rec Scr Fac Low Low Zio Dee Pro Fac Upp Upp Zhi Pro Fac Ext Cet Arc Hub Res Qua Res Tes Acc Maximum Alert Level 4 | . . . . 1 . . . . . . . . 4 . . . . 3 4 3 2 1 . . 3 3 2 Low Security (%) 56 | 100 100 100 100 76 100 . 100 . . . . . . . . . . . 6 . 45 80 100 100 34 . . Level 1 17 | . . . . 23 . . . . . . . . 19 . . . . . 50 . 43 19 . . 2 21 59 Level 2 12 | . . . . . . . . . . . . . 40 . . . . . 20 12 11 . . . 61 48 40 Level 3 11 | . . . . . . . . . . . . . 19 . . . . 100 13 87 . . . . 1 29 . Level 4 2 | . . . . . . . . . . . . . 20 . . . . . 9 . . . . . . . . Level 5 . | . . . . . . . . . . . . . . . . . . . . . . . . . . . . High Security . | . . . . . . . . . . . . . . . . . . . . . . . . . . . . Max Security . | . . . . . . . . . . . . . . . . . . . . . . . . . . . . Peak Influence 1272 | . 132 90 166 243 63 . 49 . . . . . 1190 . . . . 980 1272 832 458 303 92 177 707 778 468 Initial 900 | . . 1 15 63 63 . . . . . . . 350 . . . . 900 354 700 288 17 48 34 4 381 461 Average 275 | . 46 31 103 136 10 . 8 . . . . . 704 . . . . 885 536 751 229 137 30 90 402 589 355 Influence Increases 12535 | . 386 305 447 600 91 . 292 239 77 . . 1407 1404 70 50 . 60 1261 1845 370 234 552 315 447 998 595 490 Destroy 0b10 Robot/C 5580 | . 220 140 220 340 20 . 100 160 60 . . 1000 460 60 40 . 40 120 760 160 80 160 120 280 560 260 220 Destroy 0b10 Robot/NC 450 | . 30 5 45 55 5 . 55 . . . . 30 25 . . . 10 10 45 10 10 5 15 25 25 5 40 Destroy Leader 980 | . 58 30 98 124 . . 32 20 . . . 70 112 10 10 . 10 40 84 . . 30 50 30 90 30 52 Allied During Kill 1809 | . . . . . 5 . 9 59 2 . . 232 148 . . . . . 757 170 90 178 . . 131 . 28 Successful Hack 291 | . 17 . 7 18 . . 27 . . . . . 7 . . . . . 32 . . 36 44 15 39 22 27 Select Force Hacks 60 | . . . . . 60 . . . . . . . . . . . . . . . . . . . . . . Disable Machine 645 | . 15 . 15 15 . . 45 . . . . . 120 . . . . 90 15 . 30 60 60 60 45 30 45 Anti-Garrison Action 400 | . . . . . . . . . . . . . 200 . . . . . . . . . . . . 200 . Destroy Structure 775 | . 1 70 2 3 1 . 9 . . . . . 152 . . . . 86 152 30 24 68 26 22 63 3 63 Advance Influence 900 | . . . . . . . . . . . . . . . . . . 900 . . . . . . . . . Partial Spotted 45 | . . . 30 . . . . . . . . . 15 . . . . . . . . . . . . . . Lose Combat Pursuer 600 | . 45 60 30 45 . . 15 . 15 . . 75 165 . . . . 15 . . . 15 . 15 45 45 15 Influence Decreases 12124 | . 381 269 338 587 254 . 291 240 77 . . 850 881 958 242 . 60 538 1318 900 904 510 345 500 329 503 849 Entered New Map 2930 | . . 4 26 87 100 . . 1 . . . . 207 400 38 . . . 369 550 432 33 44 28 5 297 309 Time Decay 7155 | . 381 205 302 470 153 . 250 174 55 . . 600 374 538 204 . 60 278 589 310 452 117 301 452 214 206 470 Search Patrol Dispatched 200 | . . . . . . . . . . . . . . . . . . 200 . . . . . . . . . Lost Part 392 | . . 60 10 30 . . 10 . 2 . . 70 40 20 . . . 40 50 . . 20 . 20 10 . 10 Lost Ally 1297 | . . . . . 1 . 31 65 20 . . 180 260 . . . . 20 160 40 20 340 . . 100 . 60 Purge Threat 150 | . . . . . . . . . . . . . . . . . . . 150 . . . . . . . . Squads Dispatched 60 | . 2 . 2 1 . . 7 . . . . 2 9 . . . . 4 5 . . 3 9 2 5 3 6 Investigation 15 | . . . . . . . 2 . . . . 1 3 . . . . 1 2 . . 1 2 . 2 1 . Extermination 12 | . . . . . . . 2 . . . . . 1 . . . . 1 . . . 1 . 2 1 1 3 Reinforcement 25 | . 2 . 2 1 . . 3 . . . . . 3 . . . . 2 3 . . 1 7 . 1 . . Assault 3 | . . . . . . . . . . . . 1 . . . . . . . . . . . . 1 1 . Garrison 5 | . . . . . . . . . . . . . 2 . . . . . . . . . . . . . 3 Intercept . | . . . . . . . . . . . . . . . . . . . . . . . . . . . . Searches Triggered 2 | . . . . . . . . . . . . . . . . . . 2 . . . . . . . . . Construction Impeded 5 | . . . . . . . 1 . . . . . . . . . . 1 1 . . . 1 . 1 . . Haulers Reinforced 3 | . . . . . . . . . . . . . . . . . . . . . . . 3 . . . . Active Scanning Responses . | . . . . . . . . . . . . . . . . . . . . . . . . . . . . Cargo Convoy Interrupts . | . . . . . . . . . . . . . . . . . . . . . . . . . . . . Stealth | -11 -10 -10 -9 -9 -9 -9 -6 -6 -6 -6 -6 -5 -5 -5 -5 -5 -4 -4 -4 -4 -4 -4 -3 -3 -2 -2 -1 --------- Run | Yrd Mat Min Mat Sto Rec Scr Fac Low Low Zio Dee Pro Fac Upp Upp Zhi Pro Fac Ext Cet Arc Hub Res Qua Res Tes Acc Distress Signals 25 | . 1 . 4 1 . . . . . . . 4 . . . . . . 2 2 . 2 5 . 4 . . Communications Jammed . | . . . . . . . . . . . . . . . . . . . . . . . . . . . . Distress Signals . | . . . . . . . . . . . . . . . . . . . . . . . . . . . . Times Spotted 463 | . 22 32 26 22 1 . 9 6 6 . 60 56 25 3 2 . 9 10 44 7 6 8 14 21 40 19 15 Peak Tracking Total 37 | . 5 6 4 7 1 . 2 4 4 . 37 5 6 1 2 . 3 3 6 5 1 5 3 4 8 6 4 Tactical Retreats 33 | . 3 5 2 3 . . 1 . 1 . 1 5 5 . . . . 1 . . . 1 . 1 2 1 1 Traps | -11 -10 -10 -9 -9 -9 -9 -6 -6 -6 -6 -6 -5 -5 -5 -5 -5 -4 -4 -4 -4 -4 -4 -3 -3 -2 -2 -1 ------- Run | Yrd Mat Min Mat Sto Rec Scr Fac Low Low Zio Dee Pro Fac Upp Upp Zhi Pro Fac Ext Cet Arc Hub Res Qua Res Tes Acc Traps Triggered 9 | . . . . 1 . . 1 . . . . . . . . . . 1 3 . . 1 1 1 . . . Indirectly . | . . . . . . . . . . . . . . . . . . . . . . . . . . . . Trap Hack Attempts . | . . . . . . . . . . . . . . . . . . . . . . . . . . . . Triggered . | . . . . . . . . . . . . . . . . . . . . . . . . . . . . Disarmed . | . . . . . . . . . . . . . . . . . . . . . . . . . . . . Reprogrammed . | . . . . . . . . . . . . . . . . . . . . . . . . . . . . Reused . | . . . . . . . . . . . . . . . . . . . . . . . . . . . . Traps Extracted . | . . . . . . . . . . . . . . . . . . . . . . . . . . . . Installed . | . . . . . . . . . . . . . . . . . . . . . . . . . . . . Triggered . | . . . . . . . . . . . . . . . . . . . . . . . . . . . . Objects Rigged 1 | . . . . . . . . . . . . . . . . . . . . . . 1 . . . . . Machines | -11 -10 -10 -9 -9 -9 -9 -6 -6 -6 -6 -6 -5 -5 -5 -5 -5 -4 -4 -4 -4 -4 -4 -3 -3 -2 -2 -1 ---------- Run | Yrd Mat Min Mat Sto Rec Scr Fac Low Low Zio Dee Pro Fac Upp Upp Zhi Pro Fac Ext Cet Arc Hub Res Qua Res Tes Acc Machines Disabled 57 | . 1 . 1 1 . . 3 . . 3 5 4 8 . . . . 6 2 . 2 4 5 4 3 2 3 Max in Single Turn 3 | . 1 . 1 1 . . 1 . . 1 1 1 1 . . . . 3 1 . 1 1 2 1 . 1 1 Garrison Access 2 | . . . . . . . . . . . . . 1 . . . . . . . . . . . . 1 . Network Hub 1 | . . . . . . . . . . . . . . . . . . . . . . 1 . . . . . Machines Repaired . | . . . . . . . . . . . . . . . . . . . . . . . . . . . . Machines Dismantled . | . . . . . . . . . . . . . . . . . . . . . . . . . . . . Machines Sabotaged . | . . . . . . . . . . . . . . . . . . . . . . . . . . . . Overloaded Fab Kills . | . . . . . . . . . . . . . . . . . . . . . . . . . . . . Hacking | -11 -10 -10 -9 -9 -9 -9 -6 -6 -6 -6 -6 -5 -5 -5 -5 -5 -4 -4 -4 -4 -4 -4 -3 -3 -2 -2 -1 --------- Run | Yrd Mat Min Mat Sto Rec Scr Fac Low Low Zio Dee Pro Fac Upp Upp Zhi Pro Fac Ext Cet Arc Hub Res Qua Res Tes Acc Machines Accessed 67 | . 2 . 1 6 7 3 6 . . . . 2 4 1 . 4 . 3 11 . . 3 2 4 4 3 1 Terminals 42 | . 2 . 1 5 5 . 3 . . . . . 1 1 . . . . 9 . . 3 2 4 3 2 1 Fabricators 4 | . . . . . . . 1 . . . . 1 1 . . . . 1 . . . . . . . . . Repair Stations 2 | . . . . 1 . . 1 . . . . . . . . . . . . . . . . . . . . Recycling Units 9 | . . . . . 2 . . . . . . 1 1 . . . . 2 2 . . . . . 1 . . Scanalyzers 1 | . . . . . . . 1 . . . . . . . . . . . . . . . . . . . . Garrison Access 2 | . . . . . . . . . . . . . 1 . . . . . . . . . . . . 1 . Total Hacks 161 | . 3 . 1 10 13 12 15 . . . . 4 7 2 . 17 . 4 25 . . 7 11 9 10 9 2 Successful 101 | . 3 . 1 7 10 12 8 . . . . 1 4 2 . 17 . 1 15 . . 4 4 2 6 3 1 Failed 60 | . . . . 3 3 . 7 . . . . 3 3 . . . . 3 10 . . 3 7 7 4 6 1 Catastrophic 6 | . . . . . . . 1 . . . . 1 . . . . . 1 1 . . . 1 . . 1 . Database Lockouts . | . . . . . . . . . . . . . . . . . . . . . . . . . . . . Manual 94 | . 2 . 1 5 14 . 9 . . 1 . 1 3 . . . . 4 17 1 . 7 8 9 8 3 1 Terminals 99 | . 3 . 1 8 11 . 9 . . . . . 1 2 . . . . 22 . . 7 11 9 8 5 2 Fabricators 8 | . . . . . . . 2 . . . . 3 2 . . . . 1 . . . . . . . . . Repair Stations 3 | . . . . 2 . . 1 . . . . . . . . . . . . . . . . . . . . Recycling Units 12 | . . . . . 2 . . . . . . 1 1 . . . . 3 3 . . . . . 2 . . Scanalyzers 3 | . . . . . . . 3 . . . . . . . . . . . . . . . . . . . . Garrison Access 7 | . . . . . . . . . . . . . 3 . . . . . . . . . . . . 4 . Terminal Hacks 62 | . 3 . 1 5 1 12 1 . . . . . . 2 . 17 . . 8 . . 2 3 2 2 2 1 Record 11 | . . . . . . 4 . . . . . . . 2 . 5 . . . . . . . . . . . Part Schematic 5 | . 1 . . . . . . . . . . . . . . 4 . . . . . . . . . . . Robot Analysis 11 | . . . . . . 7 . . . . . . . . . 4 . . . . . . . . . . . Prototype ID Bank 4 | . . . . . . . . . . . . . . . . 4 . . . . . . . . . . . Open Door 7 | . . . . 3 . . . . . . . . . . . . . . 4 . . . . . . . . Level Access Points 3 | . . . . . . . . . . . . . . . . . . . . . . 1 1 . . . 1 Branch Access Points 4 | . . . 1 1 . . 1 . . . . . . . . . . . . . . . . . 1 . . Emergency Access Points 1 | . . . . . . . . . . . . . . . . . . . . . . . 1 . . . . Terminal Index 2 | . . . . . 1 . . . . . . . . . . . . . . . . . . . 1 . . Recycling Unit Index 1 | . . . . . . . . . . . . . . . . . . . 1 . . . . . . . . Unreport Threat 1 | . . . . . . . . . . . . . . . . . . . 1 . . . . . . . . Dispatch Records 1 | . 1 . . . . . . . . . . . . . . . . . . . . . . . . . . Hauler Manifests 2 | . 1 . . . . . . . . . . . . . . . . . 1 . . . . . . . . Zone Layout 7 | . . . . 1 . . . . . . . . . . . . . . 1 . . 1 1 2 . 1 . Proto ID Catalog 1 | . . . . . . 1 . . . . . . . . . . . . . . . . . . . . . Protovariant Controls 1 | . . . . . . . . . . . . . . . . . . . . . . . . . . 1 . Fabricator Hacks 5 | . . . . . . . 2 . . . . 1 2 . . . . . . . . . . . . . . Load Schematic 3 | . . . . . . . 1 . . . . 1 1 . . . . . . . . . . . . . . Build 2 | . . . . . . . 1 . . . . . 1 . . . . . . . . . . . . . . Repair Station Hacks 2 | . . . . 2 . . . . . . . . . . . . . . . . . . . . . . . Scan Component 1 | . . . . 1 . . . . . . . . . . . . . . . . . . . . . . . Repair 1 | . . . . 1 . . . . . . . . . . . . . . . . . . . . . . . Recycling Unit Hacks . | . . . . . . . . . . . . . . . . . . . . . . . . . . . . Scanalyzer 3 | . . . . . . . 3 . . . . . . . . . . . . . . . . . . . . Insert Component 1 | . . . . . . . 1 . . . . . . . . . . . . . . . . . . . . Analyze 1 | . . . . . . . 1 . . . . . . . . . . . . . . . . . . . . Retrieve Study 1 | . . . . . . . 1 . . . . . . . . . . . . . . . . . . . . Garrison Access Hacks . | . . . . . . . . . . . . . . . . . . . . . . . . . . . . Unauthorized Hacks 27 | . . . . . 9 . 2 . . . . . 2 . . . . 1 6 . . 2 1 . 3 1 . Terminals 18 | . . . . . 7 . 2 . . . . . . . . . . . 4 . . 2 1 . 2 . . Track 1 | . . . . . . . . . . . . . . . . . . . . . . . . . 1 . . Botnet 11 | . . . . . 2 . 2 . . . . . . . . . . . 4 . . 1 1 . 1 . . Detonate 1 | . . . . . . . . . . . . . . . . . . . . . . 1 . . . . . Skim 5 | . . . . . 5 . . . . . . . . . . . . . . . . . . . . . . Fabricators . | . . . . . . . . . . . . . . . . . . . . . . . . . . . . Repair Stations . | . . . . . . . . . . . . . . . . . . . . . . . . . . . . Recycling Units 7 | . . . . . 2 . . . . . . . 1 . . . . 1 2 . . . . . 1 . . Tunnel 2 | . . . . . 2 . . . . . . . . . . . . . . . . . . . . . . Scrapoids 5 | . . . . . . . . . . . . . 1 . . . . 1 2 . . . . . 1 . . Scanalyzers . | . . . . . . . . . . . . . . . . . . . . . . . . . . . . Garrison Access 2 | . . . . . . . . . . . . . 1 . . . . . . . . . . . . 1 . Jam 2 | . . . . . . . . . . . . . 1 . . . . . . . . . . . . 1 . Data Cores Recovered 3 | . 1 . . . . . . . . . . . . . . . . . 1 . . . . 1 . . . Used 1 | . . . . . . . . . . . . . . . . . . . . . . . . 1 . . . Hacking Detections 40 | . 1 . . 5 2 . 6 . . . . 2 3 . . . . 2 5 1 . 3 2 2 3 2 1 Full Trace Events 3 | . . . . . . . 1 . . . . 1 1 . . . . . . . . . . . . . . Feedback Events . | . . . . . . . . . . . . . . . . . . . . . . . . . . . . Feedback Blocked . | . . . . . . . . . . . . . . . . . . . . . . . . . . . . Robot Schematics Acquired 4 | . . . . . . . . . . 4 . . . . . . . . . . . . . . . . . Robots Built 3 | . . . . . . . . . . . . . 3 . . . . . . . . . . . . . . Authchips . | . . . . . . . . . . . . . . . . . . . . . . . . . . . . Time 152 | . . . . . . . . . . . . . 152 . . . . . . . . . . . . . . Total Robot Build Rating 15 | . . . . . . . . . . . . . 15 . . . . . . . . . . . . . . Part Schematics Acquired 21 | . 1 . . . . . 1 . . 15 . . . . . 4 . . . . . . . . . . . Parts Built 2 | . . . . . . . 2 . . . . . . . . . . . . . . . . . . . . Authchips . | . . . . . . . . . . . . . . . . . . . . . . . . . . . . Time 47 | . . . . . . . 47 . . . . . . . . . . . . . . . . . . . . Total Part Build Rating 10 | . . . . . . . 10 . . . . . . . . . . . . . . . . . . . . Part Studies Acquired 1 | . . . . . . . 1 . . . . . . . . . . . . . . . . . . . . Parts Repaired 1 | . . . . 1 . . . . . . . . . . . . . . . . . . . . . . . Time 36 | . . . . 36 . . . . . . . . . . . . . . . . . . . . . . . Parts Recycled . | . . . . . . . . . . . . . . . . . . . . . . . . . . . . Recycled Matter . | . . . . . . . . . . . . . . . . . . . . . . . . . . . . Retrieved Matter . | . . . . . . . . . . . . . . . . . . . . . . . . . . . . Retrieved Components . | . . . . . . . . . . . . . . . . . . . . . . . . . . . . Parts Scanalyzed 1 | . . . . . . . 1 . . . . . . . . . . . . . . . . . . . . Part Schematics Acquired 1 | . . . . . . . 1 . . . . . . . . . . . . . . . . . . . . Parts Damaged . | . . . . . . . . . . . . . . . . . . . . . . . . . . . . Bothacking | -11 -10 -10 -9 -9 -9 -9 -6 -6 -6 -6 -6 -5 -5 -5 -5 -5 -4 -4 -4 -4 -4 -4 -3 -3 -2 -2 -1 ------------ Run | Yrd Mat Min Mat Sto Rec Scr Fac Low Low Zio Dee Pro Fac Upp Upp Zhi Pro Fac Ext Cet Arc Hub Res Qua Res Tes Acc Used RIF Installer . | . . . . . . . . . . . . . . . . . . . . . . . . . . . . Robots Hacked 6 | . . . . . . . 3 . . . . . 3 . . . . . . . . . . . . . . Non-combat 5 | . . . . . . . 2 . . . . . 3 . . . . . . . . . . . . . . Combat . | . . . . . . . . . . . . . . . . . . . . . . . . . . . . Robot Hacks Applied 5 | . . . . . . . 2 . . . . . 3 . . . . . . . . . . . . . . find_chute 2 | . . . . . . . 1 . . . . . 1 . . . . . . . . . . . . . . find_recycling 3 | . . . . . . . 1 . . . . . 2 . . . . . . . . . . . . . . Manual 1 | . . . . . . . 1 . . . . . . . . . . . . . . . . . . . . Relay Couplers Released . | . . . . . . . . . . . . . . . . . . . . . . . . . . . . Fabnet Peak Effective % . | . . . . . . . . . . . . . . . . . . . . . . . . . . . . Robots Rewired 31 | . . . . . 5 . . . . . . 12 . . . . . . 14 . . . . . . . . Allies Hacked . | . . . . . . . . . . . . . . . . . . . . . . . . . . . . Hacks Repelled . | . . . . . . . . . . . . . . . . . . . . . . . . . . . . Allies | -11 -10 -10 -9 -9 -9 -9 -6 -6 -6 -6 -6 -5 -5 -5 -5 -5 -4 -4 -4 -4 -4 -4 -3 -3 -2 -2 -1 -------- Run | Yrd Mat Min Mat Sto Rec Scr Fac Low Low Zio Dee Pro Fac Upp Upp Zhi Pro Fac Ext Cet Arc Hub Res Qua Res Tes Acc Total Allies 95 | . . . . . 5 . 6 . . 3 . 13 8 . . . . 17 30 5 . . . . 5 . 3 Largest Group 23 | . . . . . 5 4 5 5 1 3 2 6 5 . . . . 8 22 23 21 20 . . 5 . 1 Highest-Rated Group 1350 | . . . . . 98 90 235 235 47 285 189 288 242 . . . . 327 1065 1350 1156 1105 . . 326 . 234 Highest-Rated Ally 234 | . . . . . 27 27 47 47 47 96 96 93 49 . . . . 47 159 159 96 96 . . 67 . 234 Initial UFD Resources 27 | . . . . . . . 24 24 24 24 24 27 27 24 24 24 27 27 24 18 18 18 21 21 23 20 22 Total Orders 24 | . . . . . . . . 5 6 7 2 4 . . . . . . . . . . . . . . . STAY 2 | . . . . . . . . . . . 1 1 . . . . . . . . . . . . . . . ROAM 1 | . . . . . . . . . . 1 . . . . . . . . . . . . . . . . . FOLLOW 2 | . . . . . . . . . . . 1 1 . . . . . . . . . . . . . . . EXPLORE 11 | . . . . . . . . 3 3 3 . 2 . . . . . . . . . . . . . . . RETURN 8 | . . . . . . . . 2 3 3 . . . . . . . . . . . . . . . . . Ally Attacks 814 | . . . . . 5 . 18 38 1 . 55 140 81 . . . . 1 198 61 42 84 . . 71 . 19 Total Damage 22713 | . . . . . 54 . 373 821 25 . 3630 3270 2044 . . . . . 4495 1605 1249 2314 . . 1687 . 1146 Kills 121 | . . . . . 1 . 2 7 . . 11 21 15 . . . . . 25 9 2 10 . . 10 . 8 Allies Corrupted 8 | . . . . . . . . . . . . . . . . . . . . . . 5 . . . . 3 Allies Melted 1 | . . . . . . . . . . . . . 1 . . . . . . . . . . . . . . Intel | -11 -10 -10 -9 -9 -9 -9 -6 -6 -6 -6 -6 -5 -5 -5 -5 -5 -4 -4 -4 -4 -4 -4 -3 -3 -2 -2 -1 ------- Run | Yrd Mat Min Mat Sto Rec Scr Fac Low Low Zio Dee Pro Fac Upp Upp Zhi Pro Fac Ext Cet Arc Hub Res Qua Res Tes Acc Active Infowar (turns) 13160 | . . . . . . . 983 645 908 3548 . . 78 1391 1293 220 788 221 . . . . 795 1137 295 129 729 Sensors 11731 | . . . . . . . 721 645 908 3548 . . 78 1391 1067 220 788 221 . . . . 282 824 286 128 624 Terrain 2724 | . . . . . . . 237 . 74 . . . . . 226 . . . . . . . 698 402 258 124 705 Seismic 545 | . . . . . . . 262 . . . . . . . . . . . . . . . . 283 . . . Robot Analysis Total 11 | . . . . . . 7 . . . . . . . . . 4 . . . . . . . . . . . Derelict Logs Recovered 9 | . . 1 . . . . . 1 1 1 . 1 . 1 1 . 2 . . . . . . . . . . Drone Launches 13 | . . . . . . . . 3 4 4 . 2 . . . . . . . . . . . . . . . Drone Recoveries 11 | . . . . . . . . 3 4 4 . . . . . . . . . . . . . . . . . Exploration | -11 -10 -10 -9 -9 -9 -9 -6 -6 -6 -6 -6 -5 -5 -5 -5 -5 -4 -4 -4 -4 -4 -4 -3 -3 -2 -2 -1 ------------- Run | Yrd Mat Min Mat Sto Rec Scr Fac Low Low Zio Dee Pro Fac Upp Upp Zhi Pro Fac Ext Cet Arc Hub Res Qua Res Tes Acc Turns Passed 33424 | 138 1355 548 678 1402 886 3378 1211 645 908 3648 3162 2086 864 1521 1297 237 788 612 1844 683 1129 270 806 1152 549 437 1190 Spaces Moved 14342 | 83 585 247 296 549 528 1873 431 288 447 1424 1354 972 386 646 526 140 444 202 697 296 149 109 359 401 269 164 477 Core 134 | 3 . 90 34 . . . . . . . 7 . . . . . . . . . . . . . . . . Treads 7382 | 80 585 157 210 549 528 1873 431 288 447 1414 820 . . . . . . . . . . . . . . . . Legs 6663 | . . . . . . . . . . . 426 972 386 646 526 140 444 202 697 296 149 109 359 401 269 164 477 Wheels 163 | . . . 52 . . . . . . 10 101 . . . . . . . . . . . . . . . . Hover . | . . . . . . . . . . . . . . . . . . . . . . . . . . . . Flight . | . . . . . . . . . . . . . . . . . . . . . . . . . . . . Fastest Speed 50 | 50 160 50 50 160 160 160 160 200 160 120 50 124 120 120 191 121 121 121 185 185 112 186 126 125 125 125 101 Average Speed 172 | 156 189 173 135 191 160 178 217 200 166 245 165 128 122 159 191 121 142 177 189 185 179 186 181 125 125 126 113 Slowest Speed 510 | 160 240 320 160 240 240 240 240 200 208 280 510 136 192 191 191 191 192 192 197 185 185 186 186 182 125 186 153 Overloaded Moves . | . . . . . . . . . . . . . . . . . . . . . . . . . . . . Propulsion Burnouts . | . . . . . . . . . . . . . . . . . . . . . . . . . . . . Robots Hopped . | . . . . . . . . . . . . . . . . . . . . . . . . . . . . Potential Cave-ins 5 | . . 2 . . . . . . . . 1 . . . . . . 2 . . . . . . . . . Cave-ins Triggered 2 | . . . . . . . . . . . 1 . . . . . . . . . . 1 . . . . . Exploration Rate (%) 51 | 5 92 76 29 70 76 84 12 69 59 89 91 83 12 69 67 60 60 7 87 56 72 18 15 51 12 17 13 Regions Visited 27 Branch Regions 19 Pre-discovered Areas 10 | . . 1 . . 4 . . 1 . 1 . . . . . 3 . . . . . . . . . . . Known Exits Taken 19 | . . . 1 1 . . 1 1 1 1 1 . 1 . 1 1 1 1 1 1 . 1 1 1 1 1 . Unknown Exits Taken 8 | 1 1 1 . . 1 1 . . . . . 1 . 1 . . . . . . 1 . . . . . . Scrap Searched 22 | . . 1 . . . 7 . 4 2 3 . 1 . 2 . . 2 . . . . . . . . . . Spaces Dug 83 | . . . . . . . 9 . . . 3 . 3 1 3 . 2 9 2 4 . 19 2 7 10 1 8 Terrain Destroyed 592 | . . 118 . . . . 9 . 14 . 78 85 59 9 13 . 19 48 51 10 6 28 13 11 11 1 9 Melee 47 | . . . . . . . 9 . . . 3 . 3 . . . 1 3 2 4 . . . 5 8 1 8 Projectile 148 | . . . . . . . . . 13 . 6 . . 9 13 . 18 12 14 6 6 28 13 6 3 . 1 AOE 396 | . . 118 . . . . . . . . 69 85 56 . . . . 33 35 . . . . . . . . Terrain Rammed . | . . . . . . . . . . . . . . . . . . . . . . . . . . . . Walls Destroyed . | . . . . . . . . . . . . . . . . . . . . . . . . . . . . Machines Disabled . | . . . . . . . . . . . . . . . . . . . . . . . . . . . . Actions | -11 -10 -10 -9 -9 -9 -9 -6 -6 -6 -6 -6 -5 -5 -5 -5 -5 -4 -4 -4 -4 -4 -4 -3 -3 -2 -2 -1 --------- Run | Yrd Mat Min Mat Sto Rec Scr Fac Low Low Zio Dee Pro Fac Upp Upp Zhi Pro Fac Ext Cet Arc Hub Res Qua Res Tes Acc Total 21399 | 89 737 300 480 761 564 1919 611 344 564 1566 2129 1681 707 1121 795 208 570 401 1109 380 1008 151 457 979 396 329 1043 Wait 4562 | . 85 2 89 74 4 11 88 20 81 42 485 376 209 421 242 52 81 135 195 25 772 28 12 488 36 82 427 Move 14314 | 82 584 246 295 548 527 1872 430 287 446 1423 1353 971 385 645 525 139 443 201 696 295 148 108 358 400 268 163 476 Hop . | . . . . . . . . . . . . . . . . . . . . . . . . . . . . Pick Up 357 | 1 9 . 9 23 1 14 13 8 1 33 51 47 10 18 . 5 6 5 13 7 24 1 10 13 7 5 23 Fast Attach 134 | 6 5 . 10 8 1 3 . 2 1 5 21 14 2 2 2 4 1 1 . 4 4 . 12 4 1 7 14 Attach 105 | . . 6 5 2 . . 14 . 1 7 16 8 3 3 1 2 . 6 2 . 5 . 5 3 6 3 7 Detach 47 | . . 2 1 . . . 1 . . 1 5 . 1 1 . 1 . 2 1 . 5 . 2 3 4 3 14 Swap 183 | . 2 4 2 8 . 3 10 5 6 13 24 15 18 3 2 . . 4 10 2 1 1 9 8 12 11 10 Drop 374 | . 5 . 4 22 1 16 2 12 5 33 52 38 11 11 1 5 6 7 16 11 38 1 20 18 5 12 22 Fire 547 | . 47 40 65 75 1 . . 10 23 7 47 14 7 12 22 . 19 21 54 8 9 11 28 14 8 . 5 Melee 522 | . . . . . . . 53 . . 2 72 90 60 5 . . 14 19 12 28 2 . . 28 49 43 45 Ram . | . . . . . . . . . . . . . . . . . . . . . . . . . . . . Kick 3 | . . . . . . . . . . . . . 1 . . . . . . . . 1 1 . . . . Crush 5 | . . . . 1 4 . . . . . . . . . . . . . . . . . . . . . . Escape Stasis 15 | . . . . . . . . . . . . . . . . . . . 15 . . . . . . . . Rewire 231 | . . . . . 25 . . . . . 3 108 . . . . . . 95 . . . . . . . . Trap . | . . . . . . . . . . . . . . . . . . . . . . . . . . . . Miscellaneous . | . . . . . . . . . . . . . . . . . . . . . . . . . . . . Route ------- -11/Scrapyard -10/Materials (discovered 4 exits: *Mat x3 / [*Min]) -10/Mines -9/Materials (discovered 3 exits: *Min x2 / *Sto) -9/Storage (discovered 2 exits: [*Mat] / *Rec) -9/Recycling -9/Scraptown (discovered 2 exits: *Fac x2) -6/Factory (discovered 2 exits: *Low x2) -6/Lower Caves -6/Lower Caves -6/Zion (discovered 2 exits: *Dee / [*Pro]) -6/Deep Caves -5/Proximity Caves -5/Factory (discovered 2 exits: *Fac / *Upp) -5/Upper Caves -5/Upper Caves -5/Zhirov -4/Proximity Caves -4/Factory (discovered 3 exits: Res / *Upp / *Ext) -4/Extension (discovered 2 exits: *Res / *Cet) -4/Cetus (discovered 2 exits: *Res / *Arc) -4/Archives -4/Hub_04(d) (discovered 4 exits: *Res x4) -3/Research (discovered 4 exits: *Res x3 / *Qua) -3/Quarantine -2/Research (discovered 2 exits: *Tes x2) -2/Testing -1/Access To Fleet Rendezvous History --------- Turn | Location | Event 2 | -11/Scrapyard | Met Revision 17 19 | -11/Scrapyard | Discovered new exit (range 16) 139 | -11/Scrapyard | Entered Materials 311 | -10/Materials | Build established: Mutant 557 | -10/Materials | Discovered new exit (range 16) 762 | -10/Materials | Discovered new exit (range 14) 996 | -10/Materials | Discovered new exit (range 15) 1239 | -10/Materials | Derelicts attacked the area 1477 | -10/Materials | Discovered new exit (range 7) 1494 | -10/Materials | Entered Mines 1634 | -10/Mines | Discovered new exit (range 9) 1697 | -10/Mines | Learned location of Zion (-6) 1828 | -10/Mines | Assembled infested the area 1833 | -10/Mines | Assisted by a Guerilla fighting off Assembled 1927 | -10/Mines | Core integrity fell below 50% 1985 | -10/Mines | Released all parts (5) 2003 | -10/Mines | Destroyed 16 combat bots 2015 | -10/Mines | Lost 4 parts (2n2w) 2015 | -10/Mines | Core integrity fell below 20% 2042 | -10/Mines | Entered Materials 2042 | -9/Materials | Evolved 2 slots: Propulsion x1, Utility x1 2331 | -9/Materials | Discovered new exit (range 12) 2425 | -9/Materials | Build established: Scavenger-Mutant 2496 | -9/Materials | Identified exit to Mines 2496 | -9/Materials | Identified exit to Storage 2720 | -9/Materials | Entered Storage 2787 | -9/Storage | Repaired Corrupted Lgt. Treads 2794 | -9/Storage | Identified exit to Recycling 3015 | -9/Storage | Used back door to open Recycling access 3104 | -9/Storage | Core integrity fell below 50% 3297 | -9/Storage | Discovered new exit (range 15) 4122 | -9/Storage | Entered Recycling 4883 | -9/Recycling | Learned Materials trap positions 4962 | -9/Recycling | Learned Materials garrison access intel 4969 | -9/Recycling | Scanned before Scraplab entrance 4971 | -9/Recycling | Learned Materials recycling unit intel 4986 | -9/Recycling | Learned Storage trap positions 4991 | -9/Recycling | Entered Scraplab 5004 | -9/Recycling | Discovered new exit (range 2) 5008 | -9/Recycling | Entered Scraptown 5008 | -9/Scraptown | Accompanied by 4 allies 5008 | -9/Scraptown | System corruption cleaned by C-Scrubber 5384 | -9/Scraptown | Heard Great Nut preacher, LISTEN AND RECITE! 5411 | -9/Scraptown | Visited Symbiants 5437 | -9/Scraptown | Visited Bundlers 5552 | -9/Scraptown | Visited Awakened 5578 | -9/Scraptown | Visited SPCMW 5645 | -9/Scraptown | Visited Shadow of the Wyrm 5667 | -9/Scraptown | Visited Fellowship of the Rings 5683 | -9/Scraptown | Visited Cyclists 5741 | -9/Scraptown | Discovered new exit (range 11) 5975 | -9/Scraptown | Visited UFD Registry 5975 | -9/Scraptown | Registered with UFD as "Gearframe" 6011 | -9/Scraptown | Visited Infowarlord's Domain 6039 | -9/Scraptown | Visited Science Guys 6107 | -9/Scraptown | Visited Scrapoid Pod Storage 6128 | -9/Scraptown | Visited Abandonware Association 6144 | -9/Scraptown | Learned abandonware demo "REPAIR.EXE" 6144 | -9/Scraptown | Learned abandonware demo "TRNCOAT.EXE" 6181 | -9/Scraptown | Visited Analyses Database 6227 | -9/Scraptown | Visited Modified Component R&D 6298 | -9/Scraptown | Discovered new exit (range 5) 6326 | -9/Scraptown | Found Scrap Suit 6439 | -9/Scraptown | Visited Botcube Research 6470 | -9/Scraptown | Visited Curators Association 6524 | -9/Scraptown | Visited Junk Repository 6641 | -9/Scraptown | Build established: Commander-Mutant 6780 | -9/Scraptown | Found Exp. Terrain Scanner 6844 | -9/Scraptown | Found Scrapoid Pod 8019 | -9/Scraptown | Found Lrg. Botcube 8331 | -9/Scraptown | Found Scrap Suit 8386 | -9/Scraptown | Entered Factory 8386 | -6/Factory | Accompanied by 4 allies 8386 | -6/Factory | Evolved 6 slots: Propulsion x2, Utility x4 8676 | -6/Factory | Build established: Scavenger-Mutant 8934 | -6/Factory | Lost 5 allies 9280 | -6/Factory | Lost 4 parts (3n1u) 9324 | -6/Factory | Scrapoid Pod released 06F05-D (x5) 9442 | -6/Factory | Identified exit to Lower Caves 9570 | -6/Factory | Fabricated Imp. Medium Treads (x2) 9597 | -6/Factory | Entered Lower Caves 9597 | -6/Lower Caves | Accompanied by 5 allies 9840 | -6/Lower Caves | Lost 3 allies 10195 | -6/Lower Caves | Discovered new exit (range 7) 10205 | -6/Lower Caves | Identified exit to Lower Caves 10236 | -6/Lower Caves | Attached CPS modules to 06F04-D 10242 | -6/Lower Caves | Entered another Lower Caves area 10242 | -6/Lower Caves | Accompanied by 1 ally 10354 | -6/Lower Caves | Found Scrap Suit 10820 | -6/Lower Caves | Encountered a Warlord checkpoint 11082 | -6/Lower Caves | Discovered new exit (range 16) 11140 | -6/Lower Caves | Identified exit to Zion 11150 | -6/Lower Caves | Entered Zion 11249 | -6/Zion | Discovered new exit (range 14) 11356 | -6/Zion | System corruption cleaned by Quarantine Array 11435 | -6/Zion | Given A8's code to call for help 11738 | -6/Zion | System corruption reached 10% 11748 | -6/Zion | System corruption cleaned by Quarantine Array 11877 | -6/Zion | Learned location of Warlord (-4) 11961 | -6/Zion | Found Prototype Special Weapon 11961 | -6/Zion | Identified RU-N14's Throwing Claymores 12041 | -6/Zion | Found RU-N14's Throwing Claymores 12045 | -6/Zion | Found RU-N14's Throwing Claymores 12049 | -6/Zion | Found RU-N14's Throwing Claymores 12532 | -6/Zion | Found Prototype Device 12532 | -6/Zion | Identified Mobile Refinery Mk. CCLXVII 13077 | -6/Zion | Learned 4 Factory zone layouts 13108 | -6/Zion | Found CR-A16's Pointy Stick 13965 | -6/Zion | Enhanced Grunt warped into view, answering call for help 13966 | -6/Zion | Enhanced Grunt warped into view, answering call for help 14163 | -6/Zion | Lrg. Botcube activated 14183 | -6/Zion | Lrg. Botcube completed mutation into wheeled form, armed with 2 cannons, 2 special weapons 14185 | -6/Zion | Attached CPS modules to Large Mutated Botcube 14617 | -6/Zion | Attached CPS modules to Enhanced Grunt 14632 | -6/Zion | Found Prototype Device 14694 | -6/Zion | Discovered new exit (range 3) 14694 | -6/Zion | Saw the warning signs outside the Deep Caves entrance 14696 | -6/Zion | Identified exit to Deep Caves 14698 | -6/Zion | Identified Exp. Thermal Shield 14798 | -6/Zion | Entered Deep Caves 14798 | -6/Deep Caves | Accompanied by 2 allies 15017 | -6/Deep Caves | Found Surveybot 24 Chip 15055 | -6/Deep Caves | Z-Facility disabled 15058 | -6/Deep Caves | Attacked by Z-Imprinter 15065 | -6/Deep Caves | Attached CPS modules to Z-Imprinter 15067 | -6/Deep Caves | Allies destroyed Z-Imprinter 15117 | -6/Deep Caves | Found Prototype Device 15120 | -6/Deep Caves | Crushed by falling debris 15126 | -6/Deep Caves | Identified Zio. Metafield Generator 15130 | -6/Deep Caves | Found Prototype Protection 15130 | -6/Deep Caves | Identified Zio. Weapon Casing 16241 | -6/Deep Caves | Discovered new exit (range 6) 16251 | -6/Deep Caves | Identified exit to Proximity Caves 16450 | -6/Deep Caves | Spotted Golem 16483 | -6/Deep Caves | Destroyed Golem 16544 | -6/Deep Caves | Spotted Golem 16612 | -6/Deep Caves | Destroyed Golem 16623 | -6/Deep Caves | Found Prototype Slashing Weapon 16624 | -6/Deep Caves | Identified Longsword +1 16638 | -6/Deep Caves | Lost 3 parts (2n1u) 16685 | -6/Deep Caves | Triggered Deep Caves wall 16689 | -6/Deep Caves | Exposed GOLEM chamber 16692 | -6/Deep Caves | Core integrity fell below 50% 16698 | -6/Deep Caves | Spotted Assembler 16705 | -6/Deep Caves | Destroyed Assembler 16715 | -6/Deep Caves | Spotted Assembler 16741 | -6/Deep Caves | Destroyed Assembler 16745 | -6/Deep Caves | Lost 4 parts (1p1n2u) 16766 | -6/Deep Caves | Destroyed 42 combat bots 16861 | -6/Deep Caves | Destroyed 7 combat bots 16865 | -6/Deep Caves | Found GOLEM Unit 16869 | -6/Deep Caves | Found GOLEM Unit 16873 | -6/Deep Caves | Found GOLEM Unit 16949 | -6/Deep Caves | Found GOLEM Unit 17235 | -6/Deep Caves | Build established: Golem 17657 | -6/Deep Caves | Found Prototype Protection 17657 | -6/Deep Caves | Identified Zio. Weapon Casing 17810 | -6/Deep Caves | Found Prototype Protection 17810 | -6/Deep Caves | Identified Zio. Heavy Carapace 17960 | -6/Deep Caves | Entered Proximity Caves 17960 | -5/Proximity Caves | Accompanied by 1 ally 18016 | -5/Proximity Caves | Attracted the attention of an 0b10 outpost 18131 | -5/Proximity Caves | Lrg. Botcube activated 18151 | -5/Proximity Caves | Lrg. Botcube completed mutation into wheeled form, armed with 1 gun, 2 cannons, 1 melee weapon 18153 | -5/Proximity Caves | Attached CPS modules to Large Mutated Botcube 18199 | -5/Proximity Caves | Learned 4 Factory zone layouts 18214 | -5/Proximity Caves | Spotted B-75 Beast 18242 | -5/Proximity Caves | Allies destroyed B-75 Beast 18600 | -5/Proximity Caves | Attracted the attention of an 0b10 checkpoint 18762 | -5/Proximity Caves | Snuck into a huge 0b10 base via the rear entrance 19091 | -5/Proximity Caves | Spotted B-75 Beast 19119 | -5/Proximity Caves | Destroyed B-75 Beast 19158 | -5/Proximity Caves | Lost 4 allies 19163 | -5/Proximity Caves | Lost 4 parts (1p1n2u) 19362 | -5/Proximity Caves | Discovered new exit (range 16) 19727 | -5/Proximity Caves | Build established: Commander-Golem 20046 | -5/Proximity Caves | Entered Factory 20046 | -5/Factory | Accompanied by 5 allies 20046 | -5/Factory | Evolved 2 slots: Power x1, Propulsion x1 20047 | -5/Factory | Identified exit to Upper Caves 20345 | -5/Factory | Lost 5 allies 20609 | -5/Factory | Build established: Golem 20637 | -5/Factory | Discovered new exit (range 13) 20652 | -5/Factory | Scrapoids reinforcements arrived? 20735 | -5/Factory | Garrison activated, responded to threat 20791 | -5/Factory | Lost 5 allies 20873 | -5/Factory | Fabricated G-50 Soldier? 20910 | -5/Factory | Entered Upper Caves 21023 | -5/Upper Caves | Learned 4 Factory zone layouts 21120 | -5/Upper Caves | Attracted the attention of an 0b10 checkpoint 21264 | -5/Upper Caves | Spotted B-75 Beast 21302 | -5/Upper Caves | Revealed the true nature of CR-A16's Pointy Stick 21306 | -5/Upper Caves | Destroyed B-75 Beast 22310 | -5/Upper Caves | Discovered new exit (range 9) 22431 | -5/Upper Caves | Entered another Upper Caves area 22659 | -5/Upper Caves | Found Alien Artifact 22659 | -5/Upper Caves | Identified Core Expander 22659 | -5/Upper Caves | Installed Core Expander, added new Utility slot 23711 | -5/Upper Caves | Discovered new exit (range 9) 23726 | -5/Upper Caves | Identified exit to Zhirov 23728 | -5/Upper Caves | Entered Zhirov 23729 | -5/Zhirov | Discovered new exit (range 3) 23751 | -5/Zhirov | Met Zhirov 23779 | -5/Zhirov | Learned location of Quarantine (-3) 23779 | -5/Zhirov | Learned location of Testing (-2) 23779 | -5/Zhirov | Learned location of Command (-1) 23787 | -5/Zhirov | Zhirov requested help retrieving the SGEMP Prototype 23809 | -5/Zhirov | Found Alien Artifact 23810 | -5/Zhirov | Identified Integrated Dissipator 23810 | -5/Zhirov | Installed Integrated Dissipator, increased core heat dissipation (+20) 23828 | -5/Zhirov | Found Alien Artifact 23911 | -5/Zhirov | Identified exit to Proximity Caves 23965 | -5/Zhirov | Entered Proximity Caves 24219 | -4/Proximity Caves | Received a Behemoth hack from an annoying Tinkerer 24309 | -4/Proximity Caves | Spotter reported a threat 24376 | -4/Proximity Caves | Spotter reported a threat 24436 | -4/Proximity Caves | Spotter reported a threat 24443 | -4/Proximity Caves | Spotter reported a threat 24497 | -4/Proximity Caves | Found DCF Scrap (16 items) 24541 | -4/Proximity Caves | Spotter reported a threat 24606 | -4/Proximity Caves | Spotter reported a threat 24745 | -4/Proximity Caves | Discovered new exit (range 8) 24751 | -4/Proximity Caves | Identified exit to Factory 24753 | -4/Proximity Caves | Entered Factory 24753 | -4/Factory | Evolved 2 slots: Utility x1, Weapon x1 24754 | -4/Factory | Identified exit to Extension 24755 | -4/Factory | Identified exit to Research 24755 | -4/Factory | Identified exit to Upper Caves 25003 | -4/Factory | Search patrols dispatched 25217 | -4/Factory | Scrapoids reinforcements arrived? 25253 | -4/Factory | Search patrols dispatched 25365 | -4/Factory | Entered Extension 25365 | -4/Extension | Accompanied by 4 allies 25551 | -4/Extension | Build established: Commander-Golem 25589 | -4/Extension | Rescued a captive Derelict 25589 | -4/Extension | Rescued a captive Derelict 25712 | -4/Extension | Rescued a captive Derelict 26348 | -4/Extension | Spotted B-86 Titan 26361 | -4/Extension | Allies destroyed B-86 Titan 26374 | -4/Extension | Spotted B-86 Titan 26395 | -4/Extension | Destroyed B-86 Titan 26421 | -4/Extension | Lost 3 allies 26568 | -4/Extension | Scrapoids reinforcements arrived? 26664 | -4/Extension | Rescued a captive Derelict 26665 | -4/Extension | Rescued a captive Derelict 26734 | -4/Extension | Lost 3 allies 26829 | -4/Extension | Rescued A7 27029 | -4/Extension | Scrapoid reinforcements arrived 27085 | -4/Extension | Discovered exit to Research (range 10) 27087 | -4/Extension | Discovered new exit (range 6) 27099 | -4/Extension | Build established: Commander-Mutant 27107 | -4/Extension | Identified exit to Cetus 27209 | -4/Extension | Entered Cetus 27209 | -4/Cetus | Accompanied by 21 allies (A7) 27214 | -4/Cetus | Acquired a Cetus Manufacturing Module code from A7 27226 | -4/Cetus | Attached CPS modules to A7 27237 | -4/Cetus | Spotted Cetus Guard 27240 | -4/Cetus | Allies destroyed Cetus Guard 27268 | -4/Cetus | Lost 3 allies 27510 | -4/Cetus | Started Cetus Manufacturing Module 27524 | -4/Cetus | Build established: Commander-Tank 27532 | -4/Cetus | Discovered new exit (range 16) 27535 | -4/Cetus | Manufactured an Enhanced Grunt 27560 | -4/Cetus | Manufactured an Enhanced Grunt 27582 | -4/Cetus | Spotted Cetus Guard 27585 | -4/Cetus | Manufactured an Enhanced Grunt 27589 | -4/Cetus | Destroyed Cetus Guard 27591 | -4/Cetus | Spotted Cetus Guard 27592 | -4/Cetus | Spotted Cetus Guard 27594 | -4/Cetus | Destroyed Cetus Guard 27597 | -4/Cetus | Allies destroyed Cetus Guard 27610 | -4/Cetus | Manufactured an Enhanced Grunt 27617 | -4/Cetus | Discovered exit to Research (range 15) 27626 | -4/Cetus | Met Revision 17 27635 | -4/Cetus | Manufactured an Enhanced Grunt 27716 | -4/Cetus | Identified exit to Archives 27757 | -4/Cetus | Found Prototype Protection 27757 | -4/Cetus | Identified Med. Regenerative Plating 27801 | -4/Cetus | Murdered A7 27802 | -4/Cetus | Extracted ID and sensor layout for unrecognized location from A7's data core 27870 | -4/Cetus | Build established: Commander-Mutant 27892 | -4/Cetus | Entered Archives 27892 | -4/Archives | Accompanied by 21 allies 28691 | -4/Archives | Build established: Commander-Golem 28771 | -4/Archives | Discovered new exit (range 15) 29021 | -4/Archives | Entered Hub_04(d) 29021 | -4/Hub_04(d) | Accompanied by 20 allies 29132 | -4/Hub_04(d) | Lost 4 allies 29207 | -4/Hub_04(d) | Crushed by falling debris 29254 | -4/Hub_04(d) | Network Hub disabled 29256 | -4/Hub_04(d) | Spotted Lightning 29257 | -4/Hub_04(d) | Spotted Lightning 29265 | -4/Hub_04(d) | Spotted Lightning 29291 | -4/Hub_04(d) | Entered Research 29291 | -3/Research | Evolved 2 slots: Utility x2 29292 | -3/Research | Identified exit to Quarantine 29311 | -3/Research | Lost 13 allies 29484 | -3/Research | Identified exit to Research 29491 | -3/Research | Revision forces began assault on 0b10 29514 | -3/Research | Met up with Revision 17++ 29522 | -3/Research | Attached CPS modules to Revision 17++ 29790 | -3/Research | Build established: Hacker-Golem 29840 | -3/Research | Found Prototype Device 29840 | -3/Research | Identified Exp. Shield Generator 29991 | -3/Research | Research terminal network offline 30049 | -3/Research | Murdered Revision 17++ 30097 | -3/Research | Entered Quarantine 30118 | -3/Quarantine | Found Alien Slashing Weapon 30148 | -3/Quarantine | Found Alien Artifact 30176 | -3/Quarantine | Found Alien Artifact 30177 | -3/Quarantine | Identified Phase Redirector 30209 | -3/Quarantine | Found Gamma Bomb Array 30334 | -3/Quarantine | Identified Sigix Broadsword 30362 | -3/Quarantine | Destroyed 7 combat bots 30368 | -3/Quarantine | Build established: Scavenger-Golem 30766 | -3/Quarantine | Discovered exit to Research (range 15) 30795 | -3/Quarantine | Found Alien Artifact 30795 | -3/Quarantine | Identified Core Reset Matrix 30795 | -3/Quarantine | Identified Transdimensional Reconstructor 30795 | -3/Quarantine | Identified Subatomic Replicator 30795 | -3/Quarantine | Used Core Reset Matrix 30799 | -3/Quarantine | Detected hypermatrix surge 30799 | -3/Quarantine | Sensed 7 artifacts in vicinity 30801 | -3/Quarantine | Discovered exit to Research (range 3) 31097 | -3/Quarantine | Build established: Alien-Golem 31249 | -3/Quarantine | Entered Research 31249 | -2/Research | Evolved 2 slots: Utility x2 31294 | -2/Research | Scrapoids reinforcements arrived? 31405 | -2/Research | Identified exit to Testing 31705 | -2/Research | Used Subatomic Replicator to replicate Sigix Broadsword 31719 | -2/Research | Spotted B-90 Cyclops 31723 | -2/Research | Destroyed B-90 Cyclops 31749 | -2/Research | First assault squad dispatched 31798 | -2/Research | Entered Testing 32019 | -2/Testing | Found Prototype Device 32019 | -2/Testing | Identified AEGIS Remote Shield 32048 | -2/Testing | First assault squad dispatched 32168 | -2/Testing | Build established: Alien-Gladiator 32228 | -2/Testing | Discovered new exit (range 6) 32234 | -2/Testing | Identified exit to Access 32235 | -2/Testing | Entered Access 32235 | -1/Access | Evolved 2 slots: Utility x2 32628 | -1/Access | Build established: Alien-Golem 33083 | -1/Access | Garrison activated, responded to threat 33257 | -1/Access | Build established: Alien-Gladiator 33276 | -1/Access | Identified exit to Surface 33343 | -1/Access | Spotted B-99 Colossus 33349 | -1/Access | Spotted B-99 Colossus 33359 | -1/Access | Destroyed B-99 Colossus 33371 | -1/Access | Destroyed B-99 Colossus 33383 | -1/Access | Lost 3 allies 33425 | *** | Heading to fleet! Last Messages --------------- 33363_ Penetrated by Slug. 33363_ Slug penetrates Reinforced Barrier. 33370_ Knocked back. 33370_ Slug penetrates Sealed Heavy Doors. 33370_ Penetrated by Slug. 33370_ Asb. Flux Generator destroyed. 33371_ B-99 Colossus suddenly blasts apart at the seams. 33371_ B-99 Colossus destroyed. 33374_ Identified Particle Reactor. 33375_ U-05 Engineer builds a Wall. 33378_ Acquired Unknown Reactor. 33378_ Identified Rnf. Quantum Reactor. 33379_ ALERT: Potential suspicious activity detected, Programmers report to Access Zone 3L. 33383_ U-05 Engineer builds a Wall. 33384_ Sealed Heavy Doors breached. 33391_ U-05 Engineer builds a Wall. 33417_ Main Access Shell breached. Map ----- +----------------------------------------------------+ | ?????###?##?###??##?###?#??? ? ?????????????????? | | ###?# #? ? ? ? #?# ?#?##??# ? ????????????????? | | ? ??#?## ?? ?#? #???#?##?#?#????????????????? | | ### ## ? ? ###?######??##?###??????????????? | | ""##? #? ?? ##? ?#?##?#? ??????###???????? | | ??### ## /? ? ??? +?? ????????? ???????? | | ?"##? ## ? ? ### ##?#????? ? ? ??? ?????????? | | ?"#?? ##? ? ?###?#?? ? ?#??? ?? ?#???????????? | | ""### ##?? ? ###?? ?? # ??? ?+ ????#?????? | | ?### #####?########?#?? ? ? ?? ? ? ?? ?#???????? | | ### ### ??#??##?#?? ??#? ??? ?# ??#?????? ? | | ### #? ??+ ?? + ? ??? ? ?? # #???#????? | | "" # ? ??? ?# ???? #? ? ?#???###?????? | | "T # ?# ??# ??########? ??#??????? | | # #? ?? ??? ??#?#?#?## ?##???????? | | ### ###?#??#######??? ?##?####?#? ??##??? ?? | | #?###+#####?##?#######? ? ???###?### ?##??????? | | ### #???#??###???????###?##??#??? #?##?????? | | ### ##?####?#??###?????##??###??#??##?#?????? | | ### #########?########??###?#?### ???##????? | | ### ################?###?"??###?? ?#????????? | | #?# ! # % !! "?"" ? ?"? ?? ? ??#?#?#?#? | | ### %" [%= """" ? ? ? " ? ??##??##???? | | #########" = "?"" """""" ?? ??? ???????????? | | ""?" " "??" ? ? ? ? ?#??#?#??? | | "?"" " "@ " ?" ? ???#?#??#??? | | =!! ""?" " "" " ? ?? ??#?#??#??? | | [%! """" " " ?" ? ? ???#???#??? | | ########## != """"" ?" ? ? u#?#??#? ? | | ???#?#### """" ?"??" ??" ????#?#???? | | ? #?##?# "?"" ""???"?"????##?? ?? | | ?##############?##########"#?##???A ##??#????? | | ? ###?###??###?###?#???######??##??#? ?##??#???? | | ###??##??#?####?##???##??#???###?? ????##? "? | | ?? ####?###??#?#####??#??###?#?#?#### ??####?? ?? | | ? ? ?############??####??#####??????#? ??##?????? | | ## ?###?###?????##??#??###?????? ??#?#?#? ?? | | ###### ?##?#??###??#?##??#?###?###?? ?##?#??/??? | | ??#### ?###?#??#??##????#??? ???#?? ?? ???????? | | ##?### ?#?#??#? ?? ? ??##???? ##### ? ????? | | #???#?? +???? ? ?? ? ?###?? ??#####?##????##??? | | ?? ?# ? # ? ?#??? ??????##???????#??#??????? ?? | | ?? #? ?? ??# ?" #?? ?#?? ? ??? ? ?? ?? | | "? #? ?# ? ? ?? ?"? ?? ?#????? ???? ??????? | | ""? ?# #?? ??# ???"??????? + # ?? ? ???????? | | "?"? ???##? ??#??? ?? ???? ? # ?#?????????? | | " ? ##?##? ??#?? ? ??# ?? ?#??? ?#? ?????? | | ? ###?#?? ??## ????? # ??? ? # ? # ????????? | | ?? ??##?? ? ?#???#?###??? ?#?#?? ????? ?????? | | ?##?##?#? ????? ? ?? ? #???#?#?# ????????????????? | +----------------------------------------------------+ Best States ------------- Heat Dissipation 132 Energy Generation 57 Energy Capacity 2100 Matter Stores 300 Matter Capacity 300 Sight Range 16 Robot Scan Range 16 Terrain Scan Range 30 Terrain Scan Density 2010 Power Amplification 30 Additional Mass Support 20 Armor Coverage 1300 Resistance: KI 15 Resistance: TH 30 Resistance: EX 15 Resistance: EM 15 Resistance: I 15 Resistance: S 15 Resistance: P 15 Propulsion Shielding 33 Utility Shielding 90 Weapon Shielding 100 Melee Speed Boost 20 Phase Shifting 8 Evasion (%) 75 Targeting Accuracy 8 Melee Accuracy 8 Core Analysis 8 Recoil Reduction 5 Particle Charging 25 Offensive Hacking 14 Defensive Hacking 14 Item Schematics ----------------- None Robot Schematics ------------------ None Fabricated ------------ Imp. Medium Treads | x2 | -6/Factory G-50 Soldier | x3 | -5/Factory Repaired ---------- Lgt. Treads | 67% | -9/Storage | Corrupted Studied --------- None Alien Tech Used ----------------- Core Expander Integrated Dissipator Phase Redirector Sigix Broadsword Core Reset Matrix Subatomic Replicator Achievements -------------- Boltbath Freedom! Full Golem That's One Door That Should Stay Closed Challenges ------------ None Game ------ Seed AssembledZioniteDrive Manual? 0 Play Time 04:39:03 Cumulative 624.9 hours Start 2026.09.14 @ 02:33:57 End 2026.09.14 @ 07:52:15 Sessions 1 Manual Loads 0 Difficulty Rogue Special Mode None Game No. 503 Rogue 503 Adventurer 0 Explorer 0 Win Type 2 Total 21 Types 12/0/4/1/0/0/0/2/0/2 Lore% 70 Gallery% 74 Achievement% 70 Wizard Run 0 Options --------- Layout 1 ASCII 0 Keyboard 0 Movement Mouse Keybinds 0 Fullscreen 2 Font 24/Cog Map View 50x35 Zoom Use 20% Tactical HUD 1 Map Filters NONE Filters NONE Steam 1 RUN: 6f197c91-8835-42cf-96d1-59f49d24265d